bitfinex-derivatives/quotes_BTCF0:USTF0_20240902
["timestamp","ask_amount","ask_price","bid_price","bid_amount"]
[1725263805281,0.82604519,57592.0,57591.0,0.00226052]
[1725263807282,0.87774965,57592.0,57591.0,0.00226052]
[1725263807869,0.82604519,57592.0,57591.0,0.00226052]
[1725263808286,0.82504519,57592.0,57591.0,0.00226052]
[1725263809382,0.82404519,57592.0,57591.0,0.00126052]
[1725263809685,0.82504519,57592.0,57591.0,0.00226052]
[1725263812182,0.87674653,57592.0,57591.0,0.00226052]
[1725263812683,0.82504519,57592.0,57591.0,0.00226052]
[1725263813079,0.87674653,57592.0,57591.0,0.00226052]
[1725263813882,0.87674446,57592.0,57591.0,0.00226052]
[1725263815186,0.82504519,57592.0,57591.0,0.00226052]
[1725263815883,0.87674446,57592.0,57591.0,0.00226052]
[1725263816084,0.82504519,57592.0,57591.0,0.00226052]
[1725263816281,0.87674446,57592.0,57591.0,0.00226052]
[1725263816882,0.82504519,57592.0,57591.0,0.00226052]
[1725263818292,0.87674446,57592.0,57591.0,0.00226052]
[1725263818491,0.87574446,57592.0,57591.0,0.00126052]
[1725263818793,0.87674446,57592.0,57591.0,0.00226052]
[1725263819285,0.87574446,57592.0,57591.0,0.00126052]
[1725263819486,0.87674446,57592.0,57591.0,0.00226052]
[1725263820685,0.87674446,57592.0,57588.0,0.08669004]
[1725263820686,0.060778,57589.0,57588.0,0.08669004]
[1725263820890,0.2004,57589.0,57584.0,0.08669004]
[1725263821186,0.060784,57583.0,57582.0,0.08669004]
[1725263821389,0.261184,57583.0,57580.0,0.08669004]
[1725263821687,0.061186,57581.0,57580.0,0.08678117]
[1725263821895,0.061186,57581.0,57577.0,0.0977]
[1725263821896,0.261186,57581.0,57579.0,0.08678117]
[1725263822081,0.501988,57580.0,57579.0,0.08678117]
[1725263822282,0.621988,57580.0,57577.0,0.0977]
[1725263822484,0.0004,57578.0,57577.0,0.0977]
[1725263822782,0.30898139,57578.0,57577.0,0.0486]
[1725263823184,0.30898139,57578.0,57576.0,0.00026052]
[1725263823485,0.140791,57577.0,57576.0,0.08704169]
[1725263823692,0.260791,57577.0,57576.0,0.08704169]
[1725263823878,0.46200965,57577.0,57576.0,0.08704169]
[1725263824393,0.46200965,57577.0,57576.0,0.00026052]
[1725263824985,0.82280965,57577.0,57576.0,0.00026052]
[1725263825682,0.82280965,57577.0,57562.0,0.2015117]
[1725263825683,1.34384965,57577.0,57572.0,0.06934673]
[1725263825884,1.34384965,57577.0,57570.0,0.05202048]
[1725263825885,0.060797,57571.0,57570.0,0.05202048]
[1725263826102,0.060801,57567.0,57566.0,0.05202347]
[1725263826299,0.060804,57564.0,57563.0,0.05202347]
[1725263826483,0.631604,57564.0,57563.0,0.05202347]
[1725263826688,0.82441186,57564.0,57563.0,0.05202347]
[1725263827096,0.82441186,57564.0,57562.0,0.05202347]
[1725263827296,0.08,57563.0,57562.0,0.05202347]
[1725263827487,0.2,57563.0,57562.0,0.05202347]
[1725263827689,0.4487315,57563.0,57561.0,0.05202347]
[1725263827890,0.08,57562.0,57561.0,0.05202347]
[1725263828082,0.2,57562.0,57561.0,0.05202347]
[1725263828293,0.3829255,57562.0,57561.0,0.05202347]
[1725263828492,0.3833255,57562.0,57561.0,0.05202347]
[1725263828686,0.4441325,57562.0,57560.0,0.05202347]
[1725263828886,0.0754,57561.0,57560.0,0.05202347]
[1725263829195,0.0754,57561.0,57558.0,0.05228399]
[1725263829196,0.060809,57560.0,57558.0,0.05228399]
[1725263829399,0.3612,57559.0,57558.0,0.05228399]
[1725263829588,0.3612,57559.0,57558.0,0.00026052]
[1725263829589,0.54821943,57559.0,57558.0,0.00026052]
[1725263830591,0.54821943,57559.0,57558.0,0.00726052]
[1725263831290,0.54921943,57559.0,57558.0,0.00726052]
[1725263831896,0.54421943,57559.0,57558.0,0.00726052]
[1725263832087,0.72502943,57559.0,57558.0,0.00726052]
[1725263832391,0.72502943,57559.0,57558.0,0.01426052]
[1725263832601,0.72602943,57559.0,57558.0,0.01426052]
[1725263836086,0.74002943,57559.0,57558.0,0.01426052]
[1725263841501,0.67921943,57559.0,57558.0,0.01426052]
[1725263841695,0.4832,57559.0,57558.0,0.07507152]
[1725263841898,0.4832,57559.0,57558.0,1.27627152]
[1725263842210,0.54288001,57565.0,57564.0,0.060804]
[1725263842211,0.00208001,57565.0,57564.0,0.060804]
[1725263842396,0.00026052,57569.0,57568.0,0.0608]
[1725263842698,0.11026052,57569.0,57568.0,0.0612]
[1725263842894,0.29142992,57569.0,57568.0,0.0612]
[1725263843490,0.29542992,57569.0,57568.0,0.0612]
[1725263843690,0.30042992,57569.0,57568.0,0.58232]
[1725263843894,0.11926052,57569.0,57568.0,0.58232]
[1725263844104,0.00926052,57569.0,57568.0,1.23407248]
[1725263844305,0.00926052,57569.0,57568.0,1.18232]
[1725263845099,0.00926052,57569.0,57568.0,1.26232]
[1725263845811,0.00826052,57569.0,57568.0,1.26232]
[1725263846102,0.00726052,57569.0,57568.0,1.26232]
[1725263846299,0.00326052,57569.0,57568.0,1.26232]
[1725263846494,0.00326052,57569.0,57568.0,1.26532]
[1725263846900,0.00026052,57569.0,57568.0,1.26932]
[1725263847297,0.00026052,57569.0,57568.0,1.33867694]
[1725263848307,0.00026052,57569.0,57568.0,1.26932]
[1725263849895,0.00026052,57569.0,57568.0,1.48844732]
[1725263850307,0.00026052,57569.0,57568.0,1.26932]
[1725263851203,0.00026052,57569.0,57568.0,1.35610117]
[1725263851401,0.00026052,57569.0,57568.0,1.48844675]
[1725263851610,0.00026052,57569.0,57568.0,1.40166558]
[1725263851807,0.00026052,57569.0,57568.0,1.48815831]
[1725263852313,0.00126052,57569.0,57568.0,1.40866558]
[1725263852501,0.00226052,57569.0,57568.0,1.41166558]
[1725263852907,0.00226052,57569.0,57568.0,5.54246558]
[1725263853208,0.00126052,57569.0,57568.0,5.53746558]
[1725263853410,0.00126052,57569.0,57568.0,5.17666558]
[1725263853711,0.00126052,57569.0,57568.0,5.53746558]
[1725263854402,0.36448731,57580.0,57579.0,0.060789]
[1725263854714,0.65520005,57580.0,57579.0,0.061189]
[1725263855817,0.65720005,57580.0,57579.0,0.062189]
[1725263856020,0.66520005,57580.0,57579.0,0.063189]
[1725263856209,0.66520005,57580.0,57579.0,0.11506733]
[1725263856706,0.66520005,57580.0,57579.0,0.063189]
[1725263857319,0.66520005,57580.0,57579.0,0.11506246]
[1725263858217,0.66151274,57580.0,57579.0,0.063189]
[1725263858408,0.30071274,57580.0,57579.0,0.063189]
[1725263861915,0.30071274,57580.0,57579.0,0.06692938]
[1725263863617,0.1,57580.0,57579.0,0.14692938]
[1725263864011,0.1,57580.0,57579.0,0.21612199]
[1725263865016,0.1,57580.0,57579.0,0.21238161]
[1725263865213,0.098,57580.0,57579.0,0.142189]
[1725263865421,0.098,57580.0,57579.0,0.146189]
[1725263866018,0.098,57580.0,57579.0,0.142189]
[1725263866210,0.098,57580.0,57579.0,0.21238161]
[1725263866518,0.09,57580.0,57579.0,0.21238161]
[1725263867311,0.09,57580.0,57579.0,0.143189]
[1725263868511,0.09,57580.0,57579.0,0.142189]
[1725263868710,0.09,57580.0,57579.0,0.143189]
[1725263870515,0.09,57580.0,57579.0,0.22967977]
[1725263871322,0.09,57580.0,57579.0,0.27551766]
[1725263872022,0.00376084,57584.0,57583.0,0.060784]
[1725263872209,0.05,57584.0,57583.0,0.141184]
[1725263872415,0.23524426,57584.0,57583.0,0.141184]
[1725263872715,0.05,57584.0,57583.0,0.22786327]
[1725263872915,0.05,57584.0,57583.0,0.36018784]
[1725263873425,0.057,57584.0,57583.0,0.36018784]
[1725263875622,0.057,57584.0,57583.0,0.27350857]
[1725263876624,0.06076756,57584.0,57583.0,0.27350857]
[1725263877123,0.06076756,57584.0,57583.0,0.27716414]
[1725263878424,0.06076756,57584.0,57583.0,0.27716384]
[1725263880625,0.057,57584.0,57583.0,1.39816384]
[1725263880814,0.007,57584.0,57583.0,1.76746298]
[1725263881015,0.3608,57593.0,57584.0,0.52096]
[1725263881218,0.3608,57593.0,57592.0,0.061175]
[1725263881417,0.41234245,57593.0,57592.0,0.0004]
[1725263881621,0.3608,57593.0,57592.0,0.0004]
[1725263881816,0.41234245,57593.0,57592.0,0.0004]
[1725263882221,0.3608,57593.0,57592.0,0.0004]
[1725263882822,0.3668,57593.0,57592.0,0.0014]
[1725263883128,0.84739584,57593.0,57592.0,0.0024]
[1725263883832,0.89893829,57593.0,57592.0,0.0717803]
[1725263884220,0.89893829,57593.0,57592.0,0.0024]
[1725263884528,1.96831584,57593.0,57592.0,0.0024]
[1725263884733,2.03711755,57593.0,57592.0,0.0024]
[1725263885628,2.39791755,57593.0,57592.0,0.0024]
[1725263888032,2.39791755,57593.0,57592.0,0.05445066]
[1725263888240,2.39791755,57593.0,57592.0,0.0024]
[1725263889636,1.79791755,57593.0,57592.0,0.0024]
[1725263890228,1.72911584,57593.0,57592.0,0.0024]
[1725263892130,1.20819584,57593.0,57592.0,0.0024]
[1725263892332,1.72911584,57593.0,57592.0,0.0024]
[1725263893659,1.20819584,57593.0,57592.0,0.0024]
[1725263893825,1.72911584,57593.0,57592.0,0.0024]
[1725263895337,1.20819584,57593.0,57592.0,0.0024]
[1725263896823,0.48659584,57593.0,57592.0,0.0024]
[1725263897025,1.20819584,57593.0,57592.0,0.0024]
[1725263897936,1.31819584,57593.0,57592.0,0.0024]
[1725263898639,1.20819584,57593.0,57592.0,0.0024]
[1725263899030,1.20819584,57593.0,57592.0,0.05447468]
[1725263899031,1.26819584,57593.0,57592.0,0.05447468]
[1725263899231,1.20819584,57593.0,57592.0,0.05447468]
[1725263899634,1.83742184,57593.0,57592.0,0.05207635]
[1725263899943,0.060783,57584.0,57583.0,0.05208518]
[1725263900129,0.060791,57577.0,57576.0,0.06944344]
[1725263900333,0.68021293,57577.0,57571.0,0.06944344]
[1725263900537,0.72784602,57577.0,57576.0,0.05204722]
[1725263900738,0.060793,57575.0,57574.0,0.05204722]
[1725263900943,0.060793,57575.0,57573.0,0.05204906]
[1725263900944,0.31935457,57575.0,57573.0,0.05204906]
[1725263901241,0.31935457,57575.0,57572.0,0.05204906]
[1725263901242,0.060795,57573.0,57572.0,0.05204906]
[1725263901540,0.1104,57573.0,57571.0,0.00026052]
[1725263901841,0.4104,57572.0,57571.0,0.00026052]
[1725263902042,0.5404,57572.0,57571.0,0.00026052]
[1725263902345,0.78418879,57572.0,57571.0,0.00026052]
[1725263902835,0.84498479,57572.0,57571.0,0.00026052]
[1725263903541,0.79334065,57572.0,57571.0,0.00026052]
[1725263903842,0.79334065,57572.0,57571.0,0.00226052]
[1725263903843,0.74414065,57572.0,57571.0,0.00226052]
[1725263904449,0.74414065,57572.0,57571.0,0.00126052]
[1725263904649,0.74414065,57572.0,57571.0,0.00226052]
[1725263911645,1.98601665,57572.0,57571.0,0.00226052]
[1725263911853,2.17726079,57572.0,57571.0,0.00226052]
[1725263912152,2.12561665,57572.0,57571.0,0.00226052]
[1725263914041,2.20561665,57572.0,57571.0,0.00226052]
[1725263914646,1.60561665,57572.0,57571.0,0.00226052]
[1725263914839,2.20561665,57572.0,57571.0,0.00226052]
[1725263915154,1.61832642,57572.0,57571.0,0.00226052]
[1725263915351,1.52612642,57572.0,57571.0,0.00226052]
[1725263915648,1.00504642,57572.0,57571.0,0.00226052]
[1725263916049,0.99647997,57572.0,57571.0,0.00226052]
[1725263916253,0.74414065,57572.0,57571.0,0.00226052]
[1725263916445,0.88414065,57572.0,57571.0,0.00226052]
[1725263919939,0.82414065,57572.0,57571.0,0.00226052]
[1725263920652,0.87414065,57572.0,57571.0,0.00226052]
[1725263921652,0.82414065,57572.0,57571.0,0.00226052]
[1725263921852,0.88414065,57572.0,57571.0,0.00226052]
[1725263922052,0.87414065,57572.0,57571.0,0.00226052]
[1725263922444,0.92568397,57572.0,57571.0,0.00226052]
[1725263923151,0.87568397,57572.0,57571.0,0.00226052]
[1725263923949,0.88454621,57572.0,57571.0,0.00226052]
[1725263924453,0.83300289,57572.0,57571.0,0.00226052]
[1725263924756,0.88300289,57572.0,57571.0,0.00226052]
[1725263925542,0.83300289,57572.0,57571.0,0.00226052]
[1725263927359,0.90195726,57572.0,57571.0,0.00226052]
[1725263927848,0.83300289,57572.0,57571.0,0.00226052]
[1725263928362,0.82414065,57572.0,57571.0,0.00226052]
[1725263928553,0.89306418,57572.0,57571.0,0.00226052]
[1725263928861,0.82414065,57572.0,57571.0,0.00226052]
[1725263930056,0.82414065,57572.0,57571.0,0.05430958]
[1725263931762,1.18494065,57572.0,57571.0,0.05430958]
[1725263932359,1.04414465,57572.0,57571.0,0.05430958]
[1725263932559,1.19314565,57572.0,57571.0,0.00226052]
[1725263932857,1.19314565,57572.0,57571.0,0.07170396]
[1725263932858,0.68334465,57572.0,57571.0,0.07170396]
[1725263933053,0.68334465,57572.0,57571.0,0.06305752]
[1725263934458,0.73508674,57572.0,57571.0,0.06305752]
[1725263934859,0.76334465,57572.0,57571.0,0.06305752]
[1725263935952,0.68334465,57572.0,57571.0,0.06305752]
[1725263936353,0.73507885,57572.0,57571.0,0.06305752]
[1725263938463,0.68334465,57572.0,57571.0,0.00226052]
[1725263945361,0.68334465,57572.0,57571.0,0.07166245]
[1725263945563,0.73506248,57572.0,57571.0,0.07166245]
[1725263950966,0.68334465,57572.0,57571.0,0.07166245]
[1725263951260,0.68334465,57572.0,57571.0,0.00226052]
[1725263951261,0.73505698,57572.0,57571.0,0.00226052]
[1725263951455,0.68334465,57572.0,57571.0,0.00226052]
[1725263953164,0.32254465,57572.0,57571.0,0.00226052]
[1725263953761,0.1304,57572.0,57571.0,1.18413752]
[1725263954070,0.1304,57572.0,57571.0,1.3164893]
[1725263956062,0.1304,57572.0,57571.0,1.3964893]
[1725263958358,0.0004,57577.0,57576.0,0.060792]
[1725263958562,0.0004,57577.0,57576.0,0.19354378]
[1725263959576,0.01,57577.0,57576.0,1.12098378]
[1725263959880,0.01,57577.0,57576.0,1.72098378]
[1725263961273,0.005,57577.0,57576.0,1.72098378]
[1725263961472,0.005,57577.0,57576.0,1.72398378]
[1725263962065,0.82396026,57577.0,57576.0,0.13575178]
[1725263962259,1.01837259,57577.0,57576.0,0.0074]
[1725263962476,0.060796,57572.0,57571.0,0.06959974]
[1725263962768,0.531596,57572.0,57571.0,0.00026052]
[1725263962976,0.73296526,57572.0,57571.0,0.00026052]
[1725263963279,0.72696526,57572.0,57571.0,0.00026052]
[1725263963864,0.72696526,57572.0,57571.0,0.00126052]
[1725263964064,0.86696526,57572.0,57571.0,0.00126052]
[1725263965976,0.67579918,57572.0,57571.0,0.00126052]
[1725263966367,0.67579918,57572.0,57571.0,0.07059974]
[1725263966774,0.67579918,57572.0,57571.0,0.00126052]
[1725263969174,0.3608,57572.0,57571.0,0.06205752]
[1725263969367,0.3608,57572.0,57571.0,0.20205752]
[1725263969781,0.060788,57580.0,57573.0,0.060794]
[1725263969963,0.180788,57580.0,57578.0,0.06933514]
[1725263970267,0.18147807,57579.0,57578.0,0.06933514]
[1725263970467,0.29147807,57579.0,57578.0,0.06933514]
[1725263972177,0.29947807,57579.0,57574.0,0.060794]
[1725263973381,0.29947807,57579.0,57576.0,0.060792]
[1725263973575,0.30347807,57579.0,57576.0,0.060792]
[1725263974083,0.30347807,57579.0,57577.0,0.060791]
[1725263974579,0.30347807,57579.0,57578.0,0.0004]
[1725263974970,0.29847807,57579.0,57578.0,0.0004]
[1725263975576,0.30347807,57579.0,57578.0,0.0004]
[1725263976185,0.30447807,57579.0,57578.0,0.0004]
[1725263976484,0.30747807,57579.0,57578.0,0.06119]
[1725263976679,0.126,57579.0,57578.0,0.06119]
[1725263976986,0.126,57579.0,57578.0,0.14785892]
[1725263977190,0.118,57579.0,57578.0,0.14785892]
[1725263977373,0.12,57579.0,57578.0,0.14785892]
[1725263977890,0.113,57579.0,57578.0,0.14785892]
[1725263978377,0.112,57579.0,57578.0,0.14785892]
[1725263978580,0.113,57579.0,57578.0,0.28019331]
[1725263978886,0.111,57579.0,57578.0,0.2801713]
[1725263979780,0.112,57579.0,57578.0,0.19352439]
[1725263979975,0.112,57579.0,57578.0,0.28016988]
[1725263980176,0.112,57579.0,57578.0,0.19352439]
[1725263980478,0.111,57579.0,57578.0,0.19452439]
[1725263981977,0.11,57579.0,57578.0,0.19552439]
[1725263983278,0.11,57579.0,57578.0,0.1991374]
[1725263984196,0.11,57579.0,57578.0,0.2791374]
[1725263991389,0.11,57579.0,57578.0,0.27913563]
[1725263996293,0.11,57579.0,57578.0,0.27913181]
[1725263996699,0.11,57579.0,57578.0,0.38321518]
[1725263998489,0.11,57579.0,57578.0,0.27913181]
[1725264000219,0.11,57579.0,57578.0,0.06319]
[1725264000802,0.11,57579.0,57578.0,0.35658643]
[1725264000993,0.11,57579.0,57578.0,0.19551924]
[1725264001391,0.11,57579.0,57578.0,0.29967111]
[1725264002088,0.11,57579.0,57578.0,0.19551924]
[1725264002990,0.11,57579.0,57578.0,0.19451924]
[1725264003498,0.06655368,57579.0,57578.0,0.19451924]
[1725264003797,0.06755368,57579.0,57578.0,0.23792137]
[1725264003988,0.06755368,57579.0,57578.0,0.23692137]
[1725264004191,0.06855368,57579.0,57578.0,0.23692137]
[1725264004498,0.06855368,57579.0,57578.0,0.2369299]
[1725264005190,0.07255368,57579.0,57578.0,0.2369299]
[1725264005392,0.27120767,57579.0,57578.0,0.13273777]
[1725264005905,0.27020767,57579.0,57578.0,0.13273777]
[1725264006092,0.27120767,57579.0,57578.0,0.13273777]
[1725264006798,0.27420767,57579.0,57578.0,0.13273777]
[1725264007195,0.27420767,57579.0,57578.0,0.2369299]
[1725264007393,0.07555368,57579.0,57578.0,0.19352777]
[1725264008395,0.07355368,57579.0,57578.0,0.19352777]
[1725264008897,0.004,57579.0,57578.0,0.19352777]
[1725264009404,0.00377656,57580.0,57579.0,0.060789]
[1725264009606,0.00026051,57582.0,57580.0,0.060787]
[1725264009797,0.00026051,57582.0,57581.0,0.13233777]
[1725264009989,0.00399969,57582.0,57581.0,0.13233777]
[1725264010193,0.19982087,57582.0,57581.0,0.13273777]
[1725264011007,0.20282087,57582.0,57581.0,0.21956409]
[1725264011196,0.20282087,57582.0,57581.0,0.21956455]
[1725264011397,0.21082087,57582.0,57581.0,0.22055744]
[1725264011605,0.27160587,57582.0,57581.0,0.22055744]
[1725264011905,0.21082087,57582.0,57581.0,0.13373777]
[1725264012706,0.21582087,57582.0,57581.0,0.13473777]
[1725264014500,0.21582087,57582.0,57581.0,0.21473777]
[1725264015705,0.21582087,57582.0,57581.0,0.31892213]
[1725264016593,0.21282087,57582.0,57581.0,0.21373777]
[1725264016996,0.20482087,57582.0,57581.0,0.21273777]
[1725264017194,0.20982087,57582.0,57581.0,0.21273777]
[1725264017390,0.21082087,57582.0,57581.0,0.21373777]
[1725264017590,0.20582087,57582.0,57581.0,0.21373777]
[1725264017792,0.21182087,57582.0,57581.0,0.21473777]
[1725264017992,0.21182087,57582.0,57581.0,0.3189158]
[1725264018198,0.21182087,57582.0,57581.0,0.3179158]
[1725264018404,0.21182087,57582.0,57581.0,0.3189158]
[1725264019605,0.21182087,57582.0,57581.0,0.21473777]
[1725264019909,0.21182087,57582.0,57581.0,0.3189158]
[1725264021307,0.21182087,57582.0,57581.0,0.21473777]
[1725264022198,0.21182087,57582.0,57581.0,0.3189158]
[1725264022703,0.21182087,57582.0,57581.0,0.21473777]
[1725264023318,0.21182087,57582.0,57581.0,0.31891562]
[1725264024013,0.21182087,57582.0,57581.0,0.31891697]
[1725264024910,0.21182087,57582.0,57581.0,0.27552377]
[1725264026822,0.21182087,57582.0,57581.0,0.37970757]
[1725264027114,0.21182087,57582.0,57581.0,0.143186]
[1725264027316,0.21182087,57582.0,57581.0,0.27551697]
[1725264030520,0.21182087,57582.0,57581.0,0.27451697]
[1725264030711,0.01499969,57582.0,57581.0,0.27451697]
[1725264031025,0.01399969,57582.0,57581.0,0.43457702]
[1725264031606,0.01399969,57582.0,57581.0,0.30224438]
[1725264031807,0.01399969,57582.0,57581.0,0.43456638]
[1725264032317,0.01199969,57582.0,57581.0,0.43456638]
[1725264033017,0.01099969,57582.0,57581.0,1.55556638]
[1725264033207,0.060772,57595.0,57588.0,0.060779]
[1725264033406,0.060772,57595.0,57594.0,0.0804]
[1725264033614,0.25311212,57595.0,57594.0,0.0804]
[1725264034927,0.26311212,57595.0,57594.0,0.0804]
[1725264035524,0.26311212,57595.0,57594.0,0.29949127]
[1725264035727,0.20234012,57595.0,57594.0,0.29949159]
[1725264035913,0.20234012,57595.0,57594.0,0.27348229]
[1725264035914,0.01,57595.0,57594.0,0.27348229]
[1725264036224,0.024,57595.0,57594.0,0.27448229]
[1725264036613,0.028,57595.0,57594.0,0.27548229]
[1725264038217,0.00362722,57596.0,57595.0,0.060772]
[1725264038416,0.157659,57607.0,57601.0,0.060765]
[1725264038613,0.157659,57607.0,57606.0,0.14969971]
[1725264038915,0.34337958,57607.0,57606.0,0.14929971]
[1725264039117,0.34337958,57607.0,57606.0,0.08]
[1725264039306,0.34337958,57607.0,57606.0,0.14076]
[1725264039307,0.18933328,57607.0,57606.0,0.14076]
[1725264040213,0.19233328,57607.0,57606.0,0.14176]
[1725264040615,0.20633328,57607.0,57606.0,0.14276]
[1725264040813,0.20333328,57607.0,57606.0,0.14176]
[1725264041019,0.20633328,57607.0,57606.0,0.14276]
[1725264041620,0.20272058,57607.0,57606.0,0.14276]
[1725264041820,0.017,57607.0,57606.0,0.14276]
[1725264043232,0.017,57607.0,57606.0,0.14176]
[1725264043233,0.003,57607.0,57606.0,0.14176]
[1725264043420,0.004,57607.0,57606.0,0.14276]
[1725264047427,0.004,57607.0,57606.0,0.06276]
[1725264047624,0.004,57607.0,57606.0,0.14276]
[1725264048418,0.00371833,57613.0,57608.0,0.060758]
[1725264048622,0.060748,57618.0,57612.0,0.0804]
[1725264048817,0.060748,57618.0,57617.0,0.0804]
[1725264049026,0.060748,57618.0,57617.0,0.08]
[1725264049223,0.24445521,57618.0,57617.0,0.08]
[1725264049631,0.060749,57617.0,57614.0,0.13176988]
[1725264049826,0.06075,57616.0,57614.0,0.08]
[1725264050022,0.3612,57615.0,57614.0,0.08]
[1725264050224,0.421951,57615.0,57614.0,0.08]
[1725264050430,0.6020913,57615.0,57614.0,0.08]
[1725264051132,0.6020913,57615.0,57614.0,0.081]
[1725264052430,0.6030913,57615.0,57614.0,0.082]
[1725264052836,0.6030913,57615.0,57614.0,0.081]
[1725264053033,0.6030913,57615.0,57614.0,0.082]
[1725264053237,0.6020913,57615.0,57614.0,0.081]
[1725264053535,0.6030913,57615.0,57614.0,0.082]
[1725264055737,0.6030913,57615.0,57614.0,0.13376988]
[1725264056036,0.6030913,57615.0,57614.0,0.082]
[1725264057335,0.6030913,57615.0,57614.0,0.002]
[1725264057831,0.6040913,57615.0,57614.0,0.002]
[1725264058438,0.6040913,57615.0,57614.0,0.05376988]
[1725264058627,0.6030913,57615.0,57614.0,0.05276988]
[1725264058828,0.6040913,57615.0,57614.0,0.05376988]
[1725264059544,1.2655623,57615.0,57614.0,0.05386163]
[1725264059732,1.2655623,57615.0,57614.0,0.002]
[1725264059733,1.8655623,57615.0,57614.0,0.002]
[1725264060234,1.8645623,57615.0,57614.0,0.001]
[1725264060538,1.8655623,57615.0,57614.0,0.002]
[1725264061732,0.121506,57613.0,57612.0,0.02191163]
[1725264061926,0.060757,57609.0,57608.0,0.06902651]
[1725264062127,0.501957,57609.0,57608.0,0.06902651]
[1725264062327,0.060763,57604.0,57602.0,0.08667353]
[1725264062534,0.3612,57603.0,57602.0,0.08667353]
[1725264062838,0.54505262,57603.0,57602.0,0.16667353]
[1725264063534,0.54505262,57603.0,57602.0,0.081]
[1725264063936,0.54505262,57603.0,57602.0,0.082]
[1725264064831,0.54505262,57603.0,57602.0,0.142764]
[1725264065638,0.54505262,57603.0,57602.0,0.141764]
[1725264065840,0.54505262,57603.0,57602.0,0.142764]
[1725264066734,0.54905262,57603.0,57602.0,0.140764]
[1725264067344,0.54805262,57603.0,57602.0,0.140764]
[1725264067642,0.54905262,57603.0,57602.0,0.140764]
[1725264068035,0.55363011,57603.0,57602.0,0.140764]
[1725264070337,0.55263011,57603.0,57602.0,0.140764]
[1725264070535,0.55363011,57603.0,57602.0,0.140764]
[1725264070935,0.55263011,57603.0,57602.0,0.140764]
[1725264071136,0.55363011,57603.0,57602.0,0.140764]
[1725264071336,0.36877749,57603.0,57602.0,0.140764]
[1725264071541,0.36777749,57603.0,57602.0,0.140764]
[1725264073137,0.0034,57603.0,57602.0,0.562328]
[1725264073842,1e-06,57603.0,57602.0,1.683128]
[1725264074048,1e-06,57603.0,57602.0,1.824088]
[1725264074251,1e-06,57603.0,57602.0,1.744088]
[1725264074940,0.00456841,57616.0,57615.0,0.060751]
[1725264075247,0.06919385,57622.0,57618.0,0.060747]
[1725264075446,0.07919385,57622.0,57621.0,0.0004]
[1725264075858,0.27903033,57622.0,57621.0,0.0004]
[1725264076055,0.79967033,57622.0,57621.0,0.0004]
[1725264076255,0.73514947,57622.0,57621.0,0.0004]
[1725264076553,1.39589247,57622.0,57621.0,0.0004]
[1725264076752,0.79589247,57622.0,57621.0,0.0004]
[1725264077554,0.79589247,57622.0,57621.0,0.0014]
[1725264078454,0.79589247,57622.0,57621.0,0.0024]
[1725264079353,1.15669247,57622.0,57621.0,0.0024]
[1725264081742,0.63605247,57622.0,57621.0,0.0024]
[1725264084154,0.70526596,57622.0,57621.0,0.0814]
[1725264084352,0.70626596,57622.0,57621.0,0.0824]
[1725264084656,0.63705247,57622.0,57621.0,0.0824]
[1725264084846,0.70627037,57622.0,57621.0,0.0824]
[1725264085050,0.63705247,57622.0,57621.0,0.0824]
[1725264085547,0.63605247,57622.0,57621.0,0.0814]
[1725264085752,0.63705247,57622.0,57621.0,0.0824]
[1725264086856,0.57630947,57622.0,57621.0,0.0824]
[1725264087446,0.57530947,57622.0,57621.0,0.0814]
[1725264087852,0.57630947,57622.0,57621.0,0.0824]
[1725264088248,0.57530947,57622.0,57621.0,0.0814]
[1725264088454,0.57630947,57622.0,57621.0,0.0824]
[1725264089551,0.64552737,57622.0,57621.0,0.0824]
[1725264090756,0.63552737,57622.0,57621.0,0.0824]
[1725264091553,0.63552737,57622.0,57621.0,0.16921746]
[1725264093151,0.63552737,57622.0,57621.0,0.30147527]
[1725264093559,0.56630947,57622.0,57621.0,0.30147527]
[1725264093758,0.56630947,57622.0,57621.0,0.21365781]
[1725264094061,0.56630947,57622.0,57621.0,0.21465781]
[1725264094263,0.56630947,57622.0,57621.0,0.27540181]
[1725264095264,0.56630947,57622.0,57621.0,0.143144]
[1725264095458,0.56630947,57622.0,57621.0,0.27440074]
[1725264096558,0.56630947,57622.0,57621.0,0.27340074]
[1725264099754,0.56630947,57622.0,57621.0,0.36021875]
[1725264100061,0.56630947,57622.0,57621.0,0.08721801]
[1725264100259,0.63552737,57622.0,57621.0,0.0004]
[1725264100454,0.56630947,57622.0,57621.0,0.0004]
[1725264101061,0.56630947,57622.0,57621.0,0.0804]
[1725264101365,0.63563289,57622.0,57621.0,0.0804]
[1725264101957,0.69637589,57622.0,57621.0,0.0804]
[1725264102363,0.69637044,57622.0,57621.0,0.0804]
[1725264102567,0.69636893,57622.0,57621.0,0.0804]
[1725264104559,0.62705247,57622.0,57621.0,0.16721801]
[1725264104964,0.62705247,57622.0,57621.0,0.0804]
[1725264105168,0.62705247,57622.0,57621.0,0.16721801]
[1725264106372,0.56630947,57622.0,57621.0,0.2994781]
[1725264106569,0.56630947,57622.0,57621.0,0.21266009]
[1725264107465,0.56630947,57622.0,57621.0,0.29947421]
[1725264107666,0.56630947,57622.0,57621.0,0.21266009]
[1725264107869,0.56630947,57622.0,57621.0,0.29947364]
[1725264113659,0.56630947,57622.0,57621.0,0.21266009]
[1725264113858,0.56630947,57622.0,57621.0,0.27340409]
[1725264116771,0.56530947,57622.0,57621.0,0.27340409]
[1725264116970,0.56630947,57622.0,57621.0,0.27340409]
[1725264118874,0.56630947,57622.0,57621.0,0.27339272]
[1725264119777,0.56530947,57622.0,57621.0,0.27339272]
[1725264119981,0.56630947,57622.0,57621.0,0.27339272]
[1725264121781,0.56630947,57622.0,57621.0,0.21264872]
[1725264121973,0.62705247,57622.0,57621.0,0.21264872]
[1725264122175,0.62705247,57622.0,57621.0,0.29944485]
[1725264122781,0.62705247,57622.0,57621.0,0.16718755]
[1725264123280,0.62705247,57622.0,57621.0,0.30044562]
[1725264123867,0.62705247,57622.0,57621.0,0.30144562]
[1725264124286,0.06932724,57637.0,57628.0,0.16205103]
[1725264124471,0.06932724,57645.0,57636.0,0.501928]
[1725264124672,0.07401726,57647.0,57644.0,0.0804]
[1725264124878,0.07401726,57647.0,57646.0,0.0804]
[1725264125076,0.19630749,57647.0,57645.0,0.06934811]
[1725264125381,0.19630749,57647.0,57640.0,0.00026029]
[1725264125382,0.060721,57643.0,57641.0,0.06934811]
[1725264125677,0.110623,57642.0,57640.0,0.00026029]